fUST/lending_fUST_20240811
["ID","MTS","AMOUNT","RATE_DAILY","PERIOD"]
[334633154,1723367450870,-1742.1,0.00021095,3]
[334633155,1723367450881,-1649.43,0.00021095,3]
[334633156,1723367450890,-500.0,0.00021095,3]
[334633157,1723367450900,-1672.15,0.00021095,3]
[334633158,1723367450909,-1158.36,0.00021095,3]
[334633159,1723367450919,-500.0,0.00021095,3]
[334633160,1723367450929,-268.60066252,0.00021095,3]
[334633161,1723367450938,-500.0,0.00021095,3]
[334633162,1723367450947,-500.0,0.00021095,3]
[334633163,1723367450956,-500.0,0.00021095,3]
[334633164,1723367450965,-1765.92,0.00021095,3]
[334633165,1723367450975,-500.0,0.00021095,3]
[334633166,1723367450984,-500.0,0.00021095,3]
[334633167,1723367450994,-500.0,0.00021095,3]
[334633168,1723367451005,-1063.78,0.00021095,3]
[334633169,1723367451015,-500.0,0.00021095,3]
[334633170,1723367451027,-2082.16,0.00021095,3]
[334633171,1723367451038,-2977.5,0.00021095,3]
[334633172,1723367451049,-500.0,0.00021095,3]
[334633173,1723367451058,-2021.78,0.00021095,3]
[334633174,1723367451067,-1724.63,0.00021095,3]
[334633175,1723367451076,-500.0,0.00021095,3]
[334633176,1723367451086,-500.0,0.00021095,3]
[334633177,1723367451095,-500.0,0.00021095,3]
[334633178,1723367451104,-1825.06,0.00021095,3]
[334633179,1723367451115,-500.0,0.00021095,3]
[334633180,1723367451124,-515.38813262,0.00021095,3]
[334633181,1723367451134,-1037.96,0.00021095,3]
[334633182,1723367451143,-10565.74,0.00021095,3]
[334633183,1723367451152,-500.0,0.00021095,3]
[334633184,1723367451162,-2066.71,0.00021095,3]
[334633185,1723367451171,-576.22,0.00021095,3]
[334633186,1723367451181,-500.0,0.00021095,3]
[334633187,1723367451189,-500.0,0.00021095,3]
[334633188,1723367451200,-3261.7,0.00021095,3]
[334633189,1723367451211,-500.0,0.00021095,3]
[334633190,1723367451219,-713.55,0.00021095,3]
[334633191,1723367451229,-500.0,0.00021095,3]
[334633192,1723367451238,-500.0,0.00021095,3]
[334633193,1723367451247,-2064.29,0.00021095,3]
[334633194,1723367451256,-1959.8,0.00021095,3]
[334633195,1723367451266,-500.0,0.00021095,3]
[334633196,1723367451278,-540.09,0.00021095,3]
[334633197,1723367451287,-500.0,0.00021095,3]
[334633198,1723367451297,-500.0,0.00021095,3]
[334633199,1723367451306,-500.0,0.00021095,3]
[334633200,1723367451316,-500.0,0.00021095,3]
[334633201,1723367451326,-500.0,0.00021095,3]
[334633202,1723367451335,-500.0,0.00021095,3]
[334633203,1723367451343,-805.51,0.00021095,3]
[334633204,1723367451353,-513.1,0.00021095,3]
[334633205,1723367451362,-1372.34,0.00021095,3]
[334633206,1723367451372,-527.88,0.00021095,3]
[334633207,1723367451381,-877.66,0.00021095,3]
[334633208,1723367451390,-500.0,0.00021095,3]
[334633209,1723367451399,-1475.32,0.00021095,3]
[334633210,1723367451409,-1473.7,0.00021095,3]
[334633211,1723367451418,-921.95,0.00021095,3]
[334633212,1723367451427,-1020.65,0.00021095,3]
[334633213,1723367451436,-500.0,0.00021095,3]
[334633214,1723367451445,-500.0,0.00021095,3]
[334633215,1723367451455,-500.0,0.00021095,3]
[334633216,1723367451464,-757.02,0.00021095,3]
[334633217,1723367451473,-2764.93,0.00021095,3]
[334633218,1723367451483,-500.0,0.00021095,3]
[334633219,1723367451492,-2237.77,0.00021095,3]
[334633220,1723367451503,-7357.2,0.00021095,3]
[334633221,1723367451514,-500.0,0.00021095,3]
[334633222,1723367451524,-500.0,0.00021095,3]
[334633223,1723367451533,-500.0,0.00021095,3]
[334633224,1723367451542,-1543.56,0.00021095,3]
[334633225,1723367451551,-1036.02,0.00021095,3]
[334633226,1723367451560,-500.0,0.00021095,3]
[334633227,1723367451570,-12852.88,0.00021095,3]
[334633228,1723367451579,-500.0,0.00021095,3]
[334633229,1723367451589,-1288.41,0.00021095,3]
[334633230,1723367451598,-500.0,0.00021095,3]
[334633231,1723367451607,-476.11888176,0.00021095,3]
[334633232,1723367451616,-4810.34,0.00021095,3]
[334633233,1723367451626,-500.0,0.00021095,3]
[334633234,1723367451635,-1845.77,0.00021095,3]
[334633235,1723367451644,-999.87,0.00021095,3]
[334633236,1723367451653,-500.0,0.00021095,3]
[334633237,1723367451663,-500.0,0.00021095,3]
[334633238,1723367451673,-503.14,0.00021095,3]
[334633239,1723367451683,-2294.31,0.00021095,3]
[334633240,1723367451693,-766.13,0.00021095,3]
[334633241,1723367451703,-2084.63,0.00021095,3]
[334633242,1723367451715,-500.0,0.00021095,3]
[334633243,1723367451726,-500.0,0.00021095,3]
[334633244,1723367451738,-500.0,0.00021095,3]
[334633245,1723367451747,-1078.06,0.00021095,3]
[334633246,1723367451757,-500.0,0.00021095,3]
[334633247,1723367451767,-663.18,0.00021095,3]
[334633248,1723367451776,-1152.74,0.00021095,3]
[334633249,1723367451787,-1535.28,0.00021095,3]
[334633250,1723367451797,-1425.43,0.00021095,3]
[334633251,1723367451806,-432.19308685,0.00021095,3]
[334633252,1723367451819,-754.32,0.00021095,3]
[334633253,1723367451830,-500.0,0.00021095,3]
[334633254,1723367451839,-500.0,0.00021095,3]
[334633255,1723367451850,-504.07,0.00021095,3]
[334633256,1723367451860,-6728.13,0.00021095,3]
[334633257,1723367451870,-1106.57,0.00021095,3]
[334633258,1723367451879,-500.0,0.00021095,3]
[334633259,1723367451889,-500.0,0.00021095,3]
[334633260,1723367451898,-1292.63,0.00021095,3]
[334633261,1723367451909,-2050.27,0.00021095,3]
[334633262,1723367451919,-500.0,0.00021095,3]
[334633263,1723367451928,-500.0,0.00021095,3]
[334633264,1723367451938,-500.0,0.00021095,3]
[334633265,1723367451949,-796.28,0.00021095,3]
[334633266,1723367451958,-500.0,0.00021095,3]
[334633267,1723367451968,-500.0,0.00021095,3]
[334633268,1723367451978,-500.0,0.00021095,3]
[334633269,1723367451988,-517.08,0.00021095,3]
[334633270,1723367451998,-1882.79,0.00021095,3]
[334633271,1723367452010,-500.0,0.00021095,3]
[334633272,1723367452020,-500.0,0.00021095,3]
[334633273,1723367452031,-500.0,0.00021095,3]
[334633274,1723367452040,-500.0,0.00021095,3]
[334633275,1723367452049,-500.0,0.00021095,3]
[334633276,1723367452058,-500.0,0.00021095,2]
[334633277,1723367452068,-6602.33,0.00021095,3]
[334633278,1723367452077,-500.0,0.00021095,3]
[334633279,1723367452086,-988.72,0.00021095,3]
[334633280,1723367452095,-814.73,0.00021095,3]
[334633281,1723367452105,-500.0,0.00021095,3]
[334633282,1723367452114,-500.0,0.00021095,3]
[334633283,1723367452123,-2804.64,0.00021095,3]
[334633284,1723367452133,-500.0,0.00021095,3]
[334633285,1723367452143,-790.1,0.00021095,3]
[334633286,1723367452153,-500.0,0.00021095,3]
[334633287,1723367452162,-754.02,0.00021095,3]
[334633288,1723367452171,-919.44,0.00021095,3]
[334633289,1723367452180,-500.0,0.00021095,3]
[334633290,1723367452189,-500.0,0.00021095,3]
[334633291,1723367452200,-500.0,0.00021095,3]
[334633292,1723367452211,-3000.0,0.000211,2]
[334633293,1723367452220,-151.0,0.00021101,2]
[334633294,1723367452230,-151.0,0.00021101,2]
[334633295,1723367452239,-3000.0,0.0002111,2]
[334633296,1723367452250,-3000.0,0.0002112,2]
[334633297,1723367452259,-3000.0,0.0002113,2]
[334633298,1723367452269,-3000.0,0.0002114,2]
[334633299,1723367452281,-400.0,0.00021142,2]
[334633300,1723367452291,-400.0,0.00021142,2]
[334633301,1723367452301,-400.0,0.00021142,2]
[334633302,1723367452310,-400.0,0.00021142,2]
[334633303,1723367452319,-3000.0,0.0002115,2]
[334633304,1723367452329,-3000.0,0.0002116,2]
[334633305,1723367452338,-3000.0,0.0002117,2]
[334633306,1723367452347,-3000.0,0.0002118,2]
[334633307,1723367452357,-3000.0,0.0002119,2]
[334633308,1723367452367,-3000.0,0.000212,2]
[334633309,1723367452376,-3000.0,0.0002121,2]
[334633310,1723367452386,-3000.0,0.0002122,2]
[334633311,1723367452394,-3000.0,0.0002123,2]
[334633312,1723367452404,-3000.0,0.0002124,2]
[334633313,1723367452413,-3000.0,0.0002125,2]
[334633314,1723367452422,-3000.0,0.0002126,2]
[334633315,1723367452431,-3000.0,0.0002127,2]
[334633316,1723367452441,-3000.0,0.0002128,2]
[334633317,1723367452452,-3000.0,0.0002129,2]
[334633318,1723367452461,-3000.0,0.000213,2]
[334633319,1723367452471,-3000.0,0.0002131,2]
[334633320,1723367452480,-3000.0,0.0002132,2]
[334633321,1723367452489,-3000.0,0.0002133,2]
[334633322,1723367452498,-3000.0,0.0002134,2]
[334633323,1723367452507,-3000.0,0.0002135,2]
[334633324,1723367452516,-3000.0,0.0002136,2]
[334633325,1723367452526,-500.0,0.00021369,3]
[334633326,1723367452535,-500.0,0.00021369,3]
[334633327,1723367452545,-500.0,0.00021369,3]
[334633328,1723367452673,-511.69173262,0.00021369,3]
[334633329,1723367452683,-500.0,0.00021369,3]
[334633330,1723367452692,-500.0,0.00021369,3]
[334633331,1723367452702,-500.0,0.00021369,3]
[334633332,1723367452711,-500.0,0.00021369,3]
[334633333,1723367452720,-500.0,0.00021369,3]
[334633334,1723367452729,-500.0,0.00021369,3]
[334633335,1723367452739,-500.0,0.00021369,3]
[334633336,1723367452749,-500.0,0.00021369,3]
[334633337,1723367452759,-500.0,0.00021369,3]
[334633338,1723367452769,-500.0,0.00021369,3]
[334633339,1723367452778,-500.0,0.00021369,3]
[334633340,1723367452787,-500.0,0.00021369,3]
[334633341,1723367452797,-500.06796179,0.00021369,2]
[334633342,1723367452806,-500.0,0.00021369,3]
[334633343,1723367452816,-500.0,0.00021369,3]
[334633344,1723367452825,-500.0,0.00021369,3]
[334633345,1723367452835,-500.0,0.00021369,3]
[334633346,1723367452844,-500.0,0.00021369,3]
[334633347,1723367452854,-500.0,0.00021369,3]
[334633348,1723367452864,-500.0,0.00021369,3]
[334633349,1723367452873,-500.0,0.00021369,3]
[334633350,1723367452882,-500.0,0.00021369,3]
[334633351,1723367452891,-922.13,0.00021369,3]
[334633352,1723367452902,-500.0,0.00021369,3]
[334633353,1723367452912,-500.0,0.00021369,3]
[334633354,1723367452924,-810.7,0.00021369,3]
[334633355,1723367452935,-506.52358177,0.00021369,3]
[334633356,1723367452946,-697.41,0.00021369,3]
[334633357,1723367452958,-500.0,0.00021369,3]
[334633358,1723367452968,-500.0,0.00021369,3]
[334633359,1723367452978,-500.0,0.00021369,3]
[334633360,1723367452987,-553.86,0.00021369,3]
[334633361,1723367452998,-500.0,0.00021369,3]
[334633362,1723367453007,-633.58303581,0.00021369,3]
[334633363,1723367453016,-500.0,0.00021369,3]
[334633364,1723367453026,-500.0,0.00021369,3]
[334633365,1723367453035,-513.34254633,0.00021369,3]
[334633366,1723367453045,-500.0,0.00021369,3]
[334633367,1723367453054,-500.0,0.00021369,3]
[334633368,1723367453077,-500.0,0.00021369,3]
[334633369,1723367453088,-915.89,0.00021369,3]
[334633370,1723367453098,-826.24,0.00021369,3]
[334633371,1723367453107,-937.71,0.00021369,3]
[334633372,1723367453120,-500.0,0.00021369,3]
[334633373,1723367453129,-500.0,0.00021369,3]
[334633374,1723367453138,-750.32,0.00021369,3]
[334633375,1723367453148,-500.0,0.00021369,3]
[334633376,1723367453159,-500.0,0.00021369,3]
[334633377,1723367453168,-815.4,0.00021369,3]
[334633378,1723367453177,-500.0,0.00021369,3]
[334633379,1723367453188,-532.7,0.00021369,3]
[334633380,1723367453199,-556.0,0.00021369,3]
[334633381,1723367453210,-500.0,0.00021369,3]
[334633382,1723367453219,-500.0,0.00021369,3]
[334633383,1723367453228,-500.0,0.00021369,3]
[334633384,1723367453237,-500.0,0.00021369,3]
[334633385,1723367453247,-500.0,0.00021369,3]
[334633386,1723367453256,-500.0,0.00021369,3]
[334633387,1723367453265,-500.0,0.00021369,3]
[334633388,1723367453276,-500.0,0.00021369,3]
[334633389,1723367453285,-500.0,0.00021369,3]
[334633390,1723367453295,-898.61,0.00021369,3]
[334633391,1723367453305,-500.0,0.00021369,3]
[334633392,1723367453315,-500.0,0.00021369,3]
[334633393,1723367453324,-500.0,0.00021369,3]
[334633394,1723367453333,-666.53,0.00021369,3]
[334633395,1723367453342,-500.0,0.00021369,3]
[334633396,1723367453351,-500.0,0.00021369,3]
[334633397,1723367453360,-500.0,0.00021369,3]
[334633398,1723367453370,-500.0,0.00021369,3]
[334633399,1723367453379,-500.0,0.00021369,3]
[334633400,1723367453389,-500.0,0.00021369,3]
[334633401,1723367453398,-500.0,0.00021369,3]
[334633402,1723367453407,-500.0,0.00021369,3]
[334633403,1723367453416,-500.0,0.00021369,3]
[334633404,1723367453425,-500.0,0.00021369,3]
[334633405,1723367453436,-500.0,0.00021369,3]
[334633406,1723367453445,-500.0,0.00021369,3]
[334633407,1723367453456,-1496.38,0.00021369,3]
[334633408,1723367453466,-530.39,0.00021369,3]
[334633409,1723367453478,-550.00418135,0.00021369,3]
[334633410,1723367453489,-577.6,0.00021369,3]
[334633411,1723367453498,-500.0,0.00021369,3]
[334633412,1723367453509,-500.0,0.00021369,3]
[334633413,1723367453520,-875.22,0.00021369,3]
[334633414,1723367453530,-587.95,0.00021369,3]
[334633415,1723367453540,-500.0,0.00021369,3]
[334633416,1723367453550,-500.0,0.00021369,3]
[334633417,1723367453561,-500.0,0.00021369,3]
[334633418,1723367453572,-1026.11,0.00021369,3]
[334633419,1723367453581,-560.45,0.00021369,3]
[334633420,1723367453590,-682.55,0.00021369,3]
[334633421,1723367453600,-660.23,0.00021369,3]
[334633422,1723367453610,-572.42,0.00021369,3]
[334633423,1723367453622,-500.0,0.00021369,3]
[334633424,1723367453633,-757.17,0.00021369,3]
[334633425,1723367453645,-500.0,0.00021369,3]
[334633426,1723367453655,-576.05,0.00021369,2]
[334633427,1723367453664,-673.28,0.00021369,3]
[334633428,1723367453675,-546.29020655,0.00021369,3]
[334633429,1723367453685,-500.0,0.00021369,3]
[334633430,1723367453696,-500.0,0.00021369,3]
[334633431,1723367453707,-500.0,0.00021369,3]
[334633432,1723367453718,-500.0,0.00021369,3]
[334633433,1723367453727,-635.46,0.00021369,3]
[334633434,1723367453737,-568.13,0.00021369,3]
[334633435,1723367453746,-693.6,0.00021369,3]
[334633436,1723367453756,-500.0,0.00021369,3]
[334633437,1723367453764,-588.23697672,0.00021369,3]
[334633438,1723367453774,-500.0,0.00021369,3]
[334633439,1723367453785,-500.0,0.00021369,3]
[334633440,1723367453795,-755.16,0.00021369,3]
[334633441,1723367453805,-500.0,0.00021369,3]
[334633442,1723367453815,-1253.28,0.00021369,3]
[334633443,1723367453826,-500.0,0.00021369,3]
[334633444,1723367453836,-810.68,0.00021369,3]
[334633445,1723367453848,-500.0,0.00021369,3]
[334633446,1723367453858,-1228.56,0.00021369,3]
[334633447,1723367453868,-586.07,0.00021369,3]
[334633448,1723367453878,-1034.44,0.00021369,3]
[334633449,1723367453887,-500.0,0.00021369,3]
[334633450,1723367453896,-500.0,0.00021369,3]
[334633451,1723367453905,-500.0,0.00021369,3]
[334633452,1723367453914,-500.0,0.00021369,3]
[334633453,1723367453923,-1096.91,0.00021369,3]
[334633454,1723367453932,-500.0,0.00021369,3]
[334633455,1723367453942,-720.32,0.00021369,3]
[334633456,1723367453951,-1202.25,0.00021369,3]
[334633457,1723367453962,-534.64,0.00021369,3]
[334633458,1723367453971,-500.0,0.00021369,3]
[334633459,1723367453980,-1305.3,0.00021369,3]
[334633460,1723367453990,-500.0,0.00021369,3]
[334633461,1723367453999,-753.18,0.00021369,3]
[334633462,1723367454009,-500.0,0.00021369,3]
[334633463,1723367454018,-628.08,0.00021369,3]
[334633464,1723367454027,-500.0,0.00021369,3]
[334633465,1723367454037,-500.0,0.00021369,3]
[334633466,1723367454046,-1090.65,0.00021369,3]
[334633467,1723367454055,-500.0,0.00021369,3]
[334633468,1723367454065,-500.0,0.00021369,3]
[334633469,1723367454074,-500.0,0.00021369,3]
[334633470,1723367454083,-500.0,0.00021369,3]
[334633471,1723367454093,-500.0,0.00021369,3]
[334633472,1723367454102,-500.0,0.00021369,3]
[334633473,1723367454112,-280.53580922,0.00021369,3]
[334633474,1723367454121,-668.61,0.00021369,3]
[334633475,1723367454131,-500.0,0.00021369,3]
[334633476,1723367454140,-500.0,0.00021369,3]
[334633477,1723367454150,-500.0,0.00021369,3]
[334633478,1723367454159,-500.0,0.00021369,3]
[334633479,1723367454169,-500.0,0.00021369,3]
[334633480,1723367454179,-500.0,0.00021369,3]
[334633481,1723367454187,-500.0,0.00021369,3]
[334633482,1723367454197,-500.0,0.00021369,3]
[334633483,1723367454210,-500.0,0.00021369,3]
[334633484,1723367454219,-500.0,0.00021369,3]
[334633485,1723367454228,-500.0,0.00021369,3]
[334633486,1723367454238,-500.0,0.00021369,3]
[334633487,1723367454247,-1742.1,0.00021369,3]
[334633488,1723367454257,-1649.43,0.00021369,3]
[334633489,1723367454267,-500.0,0.00021369,3]
[334633490,1723367454278,-1672.15,0.00021369,3]
[334633491,1723367454288,-1158.36,0.00021369,3]
[334633492,1723367454298,-500.0,0.00021369,3]
[334633493,1723367454307,-500.0,0.00021369,3]
[334633494,1723367454317,-507.5695344,0.00021369,3]
[334633495,1723367454326,-500.0,0.00021369,3]
[334633496,1723367454336,-1765.92,0.00021369,3]
[334633497,1723367454345,-500.0,0.00021369,3]
[334633498,1723367454356,-500.0,0.00021369,3]
[334633499,1723367454368,-500.0,0.00021369,3]
[334633500,1723367454377,-1063.78,0.00021369,3]
[334633501,1723367454386,-500.0,0.00021369,3]
[334633502,1723367454395,-2082.16,0.00021369,3]
[334633503,1723367454406,-2977.5,0.00021369,3]
[334633504,1723367454415,-500.0,0.00021369,3]
[334633505,1723367454424,-2021.78,0.00021369,3]
[334633506,1723367454434,-1724.63,0.00021369,3]
[334633507,1723367454443,-500.0,0.00021369,3]
[334633508,1723367454453,-500.0,0.00021369,3]
[334633509,1723367454462,-500.0,0.00021369,3]
[334633510,1723367454471,-1825.06,0.00021369,3]
[334633511,1723367454482,-500.0,0.00021369,3]
[334633512,1723367454491,-1037.96,0.00021369,3]
[334633513,1723367454501,-10565.74,0.00021369,3]
[334633514,1723367454510,-500.0,0.00021369,3]
[334633515,1723367454520,-2066.71,0.00021369,3]
[334633516,1723367454529,-576.22,0.00021369,3]
[334633517,1723367454538,-500.0,0.00021369,3]
[334633518,1723367454547,-500.0,0.00021369,3]
[334633519,1723367454556,-3261.7,0.00021369,3]
[334633520,1723367454566,-500.0,0.00021369,3]
[334633521,1723367454575,-713.55,0.00021369,3]
[334633522,1723367454584,-500.0,0.00021369,3]
[334633523,1723367454593,-500.0,0.00021369,3]
[334633524,1723367454603,-2064.29,0.00021369,3]
[334633525,1723367454612,-1959.8,0.00021369,3]
[334633526,1723367454621,-500.0,0.00021369,3]
[334633527,1723367454630,-540.09,0.00021369,3]
[334633528,1723367454640,-500.0,0.00021369,3]
[334633529,1723367454649,-500.0,0.00021369,3]
[334633530,1723367454658,-500.0,0.00021369,3]
[334633531,1723367454668,-500.0,0.00021369,3]
[334633532,1723367454678,-500.0,0.00021369,3]
[334633533,1723367454687,-500.0,0.00021369,3]
[334633534,1723367454696,-805.51,0.00021369,3]
[334633535,1723367454705,-513.1,0.00021369,3]
[334633536,1723367454714,-1372.34,0.00021369,3]
[334633537,1723367454725,-527.88,0.00021369,3]
[334633538,1723367454735,-877.66,0.00021369,3]
[334633539,1723367454744,-500.0,0.00021369,3]
[334633540,1723367454755,-1475.32,0.00021369,3]
[334633541,1723367454764,-1473.7,0.00021369,3]
[334633542,1723367454773,-921.95,0.00021369,3]
[334633543,1723367454783,-1020.65,0.00021369,3]
[334633544,1723367454794,-500.0,0.00021369,3]
[334633545,1723367454803,-500.0,0.00021369,3]
[334633546,1723367454813,-500.0,0.00021369,3]
[334633547,1723367454823,-757.02,0.00021369,3]
[334633548,1723367454832,-2764.93,0.00021369,3]
[334633549,1723367454842,-500.0,0.00021369,3]
[334633550,1723367454851,-2237.77,0.00021369,3]
[334633551,1723367454861,-7357.2,0.00021369,3]
[334633552,1723367454871,-500.0,0.00021369,3]
[334633553,1723367454880,-500.0,0.00021369,3]
[334633554,1723367454889,-500.0,0.00021369,3]
[334633555,1723367454898,-1543.56,0.00021369,3]
[334633556,1723367454908,-1036.02,0.00021369,3]
[334633557,1723367454918,-500.0,0.00021369,3]
[334633558,1723367454927,-12852.88,0.00021369,3]
[334633559,1723367454937,-500.0,0.00021369,3]
[334633560,1723367454946,-1288.41,0.00021369,3]
[334633561,1723367454955,-500.0,0.00021369,3]
[334633562,1723367454964,-4810.34,0.00021369,3]
[334633563,1723367454974,-500.0,0.00021369,3]
[334633564,1723367454984,-1845.77,0.00021369,3]
[334633565,1723367454993,-999.87,0.00021369,3]
[334633566,1723367455002,-500.0,0.00021369,3]
[334633567,1723367455011,-500.0,0.00021369,3]
[334633568,1723367455021,-503.14,0.00021369,3]
[334633569,1723367455030,-2294.31,0.00021369,3]
[334633570,1723367455039,-766.13,0.00021369,3]
[334633571,1723367455048,-2084.63,0.00021369,3]
[334633572,1723367455057,-500.0,0.00021369,3]
[334633573,1723367455067,-500.0,0.00021369,3]
[334633574,1723367455077,-500.0,0.00021369,3]
[334633575,1723367455086,-1078.06,0.00021369,3]
[334633576,1723367455096,-500.0,0.00021369,3]
[334633577,1723367455105,-663.18,0.00021369,3]
[334633578,1723367455115,-1152.74,0.00021369,3]
[334633579,1723367455124,-1535.28,0.00021369,3]
[334633580,1723367455133,-1425.43,0.00021369,3]
[334633581,1723367455143,-754.32,0.00021369,3]
[334633582,1723367455153,-232.00323186,0.00021369,3]
[334633583,1723367455163,-500.0,0.00021369,3]
[334633584,1723367455172,-504.07,0.00021369,3]
[334633585,1723367455182,-6728.13,0.00021369,3]
[334633586,1723367455192,-1106.57,0.00021369,3]
[334633587,1723367455203,-500.0,0.00021369,3]
[334633588,1723367455214,-500.0,0.00021369,3]
[334633589,1723367455224,-1292.63,0.00021369,3]
[334633590,1723367455234,-2050.27,0.00021369,3]
[334633591,1723367455244,-433.19467195,0.00021369,3]
[334633592,1723367455254,-500.0,0.00021369,3]
[334633593,1723367455263,-500.0,0.00021369,3]
[334633594,1723367455272,-796.28,0.00021369,3]
[334633595,1723367455282,-500.0,0.00021369,3]
[334633596,1723367455292,-500.0,0.00021369,3]
[334633597,1723367455301,-500.0,0.00021369,3]
[334633598,1723367455311,-517.08,0.00021369,3]
[334633599,1723367455321,-1882.79,0.00021369,3]
[334633600,1723367455330,-500.0,0.00021369,3]
[334633601,1723367455340,-500.0,0.00021369,3]
[334633602,1723367455350,-500.0,0.00021369,3]
[334633603,1723367455359,-500.0,0.00021369,3]
[334633604,1723367455368,-500.0,0.00021369,3]
[334633605,1723367455377,-500.0,0.00021369,2]
[334633606,1723367455387,-6602.33,0.00021369,3]
[334633607,1723367455396,-500.0,0.00021369,3]
[334633608,1723367455405,-988.72,0.00021369,3]
[334633609,1723367455414,-814.73,0.00021369,3]
[334633610,1723367455526,-500.0,0.00021369,3]
[334633611,1723367455549,-500.0,0.00021369,3]
[334633612,1723367455559,-2804.64,0.00021369,3]
[334633613,1723367455568,-500.0,0.00021369,3]
[334633614,1723367455577,-790.1,0.00021369,3]
[334633615,1723367455586,-500.0,0.00021369,3]
[334633616,1723367455596,-754.02,0.00021369,3]
[334633617,1723367455605,-919.44,0.00021369,3]
[334633618,1723367455616,-500.0,0.00021369,3]
[334633619,1723367455628,-575.63,0.00021369,3]
[334633620,1723367455637,-206.9074418,0.0002137,2]
[334633621,1723367455648,-294.6834504,0.0002137,2]
[334633622,1723367455658,-3000.0,0.0002137,2]
[334633623,1723367455668,-3000.0,0.0002138,2]
[334633624,1723367455678,-3000.0,0.0002139,2]
[334633625,1723367455689,-3000.0,0.000214,2]
[334633626,1723367455700,-1000.0,0.000214,2]
[334633627,1723367455710,-151.0,0.00021401,2]
[334633628,1723367455720,-151.0,0.00021401,2]
[334633629,1723367455731,-3000.0,0.0002141,2]
[334633630,1723367455742,-620.09396208,0.00021414,2]
[334633631,1723367455751,-3000.0,0.0002142,2]
[334633632,1723367455760,-3000.0,0.0002143,2]
[334633633,1723367455769,-3000.0,0.0002144,2]
[334633634,1723367455778,-3000.0,0.0002145,2]
[334633635,1723367455788,-3000.0,0.0002146,2]
[334633636,1723367455797,-4218.421484,0.0002147,2]
[334633637,1723367455807,-160.0,0.00021598,3]
[334633638,1723367455816,-250.0,0.00021621,2]
[334633639,1723367455825,-500.0,0.00021643,3]
[334633640,1723367455834,-500.0,0.00021643,3]
[334633641,1723367455843,-500.0,0.00021643,3]
[334633642,1723367455853,-500.0,0.00021643,3]
[334633643,1723367455862,-500.0,0.00021643,3]
[334633644,1723367455873,-500.0,0.00021643,3]
[334633645,1723367455883,-500.0,0.00021643,3]
[334633646,1723367455893,-500.0,0.00021643,3]
[334633647,1723367455903,-500.0,0.00021643,3]
[334633648,1723367455914,-500.0,0.00021643,3]
[334633649,1723367455923,-500.0,0.00021643,3]
[334633650,1723367455933,-500.0,0.00021643,3]
[334633651,1723367455943,-500.0,0.00021643,3]
[334633652,1723367455954,-369.0,0.00021643,3]
[334633653,1723367455964,-500.0,0.00021643,3]